bitfinex-derivatives/quotes_ETHF0:USTF0_20250224
["timestamp","ask_amount","ask_price","bid_price","bid_amount"]
[1740416095342,0.00562356,2666.4,2666.3,1.1318]
[1740416098244,0.00562356,2666.4,2666.0,0.5705]
[1740416098748,0.54852356,2666.4,2666.0,0.5705]
[1740416099148,0.00562356,2666.4,2666.1,3.2078]
[1740416099347,0.00562356,2666.4,2666.1,3.7811]
[1740416100248,0.00562356,2666.4,2666.3,0.75016]
[1740416100646,1.8754,2666.3,2665.8,0.75027]
[1740416100951,0.7503,2665.9,2665.8,0.75027]
[1740416101344,0.75033,2665.7,2665.6,1.30463]
[1740416101845,3.224,2666.0,2665.6,0.5543]
[1740416102045,0.75033,2665.8,2665.7,0.75031]
[1740416102655,3.224,2666.0,2665.6,0.5543]
[1740416102847,3.224,2666.0,2665.5,0.538]
[1740416102848,0.75038,2665.6,2665.5,0.75036]
[1740416103048,1.87571,2665.9,2665.4,3.2078]
[1740416103249,0.75038,2665.5,2665.4,3.2078]
[1740416103753,0.7505,2665.1,2665.0,3.96393356]
[1740416103949,0.7505,2665.2,2665.1,0.75048]
[1740416104445,0.7505,2665.1,2665.0,0.75613356]
[1740416104645,0.7505,2665.1,2665.0,0.00562356]
[1740416105049,1.8961,2665.1,2665.0,0.00562356]
[1740416106246,5.1039,2665.1,2665.0,0.00562356]
[1740416109147,0.75066,2664.5,2664.4,61.602]
[1740416109349,0.75066,2664.5,2664.4,41.55069]
[1740416109548,0.75069,2664.4,2664.3,3.9585]
[1740416109747,1.87657,2664.7,2663.9,3.2078]
[1740416109947,0.5666,2664.6,2664.0,40.8]
[1740416110148,0.7507,2664.4,2664.0,40.8]
[1740416110452,0.7507,2664.4,2664.3,0.7507]
[1740416111252,0.75071,2664.4,2664.3,0.75071]
[1740416112255,0.75072,2664.3,2664.2,0.75073]
[1740416112457,0.7507,2664.4,2664.3,0.7507]
[1740416113255,0.58392356,2664.6,2664.5,0.75066]
[1740416113644,0.58392356,2664.6,2664.2,0.5482]
[1740416113849,0.75069,2664.5,2664.4,0.75066]
[1740416114050,0.58392356,2664.6,2664.2,0.5482]
[1740416114257,0.58392356,2664.6,2664.3,0.7507]
[1740416114258,0.75072,2664.4,2664.3,0.7507]
[1740416114648,0.58392356,2664.6,2664.2,0.5482]
[1740416114960,0.75068,2664.5,2664.4,0.75066]
[1740416115456,0.58392356,2664.6,2664.2,3.2078]
[1740416115757,0.75072,2664.3,2664.2,3.2078]
[1740416116351,0.75072,2664.3,2664.2,3.95855]
[1740416118162,0.75072,2664.3,2664.2,3.2078]
[1740416118861,0.75071,2664.4,2664.3,0.7507]
[1740416119064,0.75072,2664.3,2664.2,3.95853]
[1740416119263,0.75072,2664.3,2664.2,3.2078]
[1740416119558,0.75071,2664.4,2664.2,3.2078]
[1740416119762,0.75072,2664.3,2664.2,3.95855]
[1740416120456,0.75072,2664.3,2664.2,3.2078]
[1740416121457,0.75078,2664.1,2664.0,0.55152356]
[1740416121763,0.75078,2664.1,2664.0,1.30233356]
[1740416122456,0.75076,2664.2,2664.1,0.75075]
[1740416123763,0.75078,2664.1,2664.0,1.30231356]
[1740416124668,0.75078,2664.1,2664.0,0.55152356]
[1740416125170,0.75078,2664.1,2664.0,0.00562356]
[1740416125568,1.30578,2664.1,2664.0,0.00562356]
[1740416126268,1.30578,2664.1,2663.6,3.2078]
[1740416126269,0.75089,2663.7,2663.6,3.2078]
[1740416126673,0.75089,2663.7,2663.6,3.95872]
[1740416126872,0.75089,2663.7,2663.6,3.2078]
[1740416127173,1.29039,2663.7,2663.6,3.2078]
[1740416127376,1.2904,2663.7,2663.3,0.539]
[1740416127575,1.2904,2663.7,2663.6,0.75092]
[1740416127869,0.75095,2663.6,2663.5,0.75092]
[1740416128275,0.5395,2663.7,2663.3,0.539]
[1740416128569,0.75097,2663.5,2663.4,0.75094]
[1740416128770,0.75094,2663.6,2663.5,0.75092]
[1740416129368,0.75097,2663.4,2663.3,1.28998]
[1740416129562,0.5464,2663.6,2663.3,0.539]
[1740416129770,1.29735,2663.6,2663.5,0.75095]
[1740416130466,1.29733,2663.6,2663.5,0.75095]
[1740416130862,0.5395,2663.7,2663.3,0.539]
[1740416131165,0.5464,2664.1,2663.4,3.2078]
[1740416131373,0.5464,2664.1,2663.5,0.583]
[1740416131866,0.5464,2664.1,2663.6,0.5612]
[1740416134078,0.5623,2664.0,2663.6,0.5612]
[1740416134876,0.5464,2664.1,2663.6,0.5612]
[1740416137676,0.9217,2664.1,2663.9,0.00410569]
[1740416137884,3.2078,2664.0,2663.9,0.00410569]
[1740416138581,3.5831,2664.0,2663.9,0.00410569]
[1740416139281,3.2078,2664.0,2663.9,0.00410569]
[1740416139476,3.5831,2664.0,2663.9,0.00410569]
[1740416139684,9.5831,2664.0,2663.2,0.5908]
[1740416139982,3.2078,2663.7,2663.2,0.5908]
[1740416140181,1.1432,2663.6,2663.2,0.5908]
[1740416143080,0.5476,2663.5,2663.2,0.5908]
[1740416143674,0.5476,2663.5,2663.0,3.7842]
[1740416147079,0.5577,2663.6,2663.0,3.7842]
[1740416147476,0.5577,2663.6,2663.1,40.8]
[1740416147778,0.5577,2663.6,2663.2,0.5823]
[1740416148180,0.5577,2663.6,2663.3,0.5819]
[1740416153077,3.2078,2663.7,2663.3,0.5819]
[1740416153286,3.2078,2663.7,2663.4,0.5359]
[1740416153590,0.588,2663.8,2663.3,0.5819]
[1740416154591,0.588,2663.8,2663.3,3.7897]
[1740416156892,0.5462,2663.9,2663.3,3.7897]
[1740416158487,0.5462,2663.9,2663.3,0.5819]
[1740416159079,0.5462,2663.9,2663.3,3.7897]
[1740416159990,3.2078,2663.7,2663.3,0.5819]
[1740416160288,3.2078,2663.4,2662.7,3.2078]
[1740416160477,3.2078,2663.1,2662.5,3.7735]
[1740416160681,3.2078,2663.1,2662.5,0.5657]
[1740416161085,3.2078,2662.8,2662.5,0.5657]
[1740416161390,3.5943,2663.2,2662.6,0.75118]
[1740416161391,0.75119,2662.7,2662.6,0.75118]
[1740416162084,1.87773,2663.0,2662.5,0.5657]
[1740416162282,0.7512,2662.6,2662.5,1.31691]
[1740416164495,0.75129,2662.3,2662.2,0.7513]
[1740416165190,1.87821,2662.4,2661.6,5.08649]
[1740416165384,3.2078,2662.6,2661.9,3.2078]
[1740416165695,1.1294,2662.8,2662.2,3.2078]
[1740416165889,1.1294,2662.8,2662.3,0.5519]
[1740416166090,0.75126,2662.4,2662.3,0.5519]
[1740416166497,0.75131,2662.2,2662.1,0.75132]
[1740416166697,0.75132,2662.3,2662.2,0.7513]
[1740416167899,0.75125,2662.5,2662.4,0.75123]
[1740416168196,0.75131,2662.3,2662.2,0.75129]
[1740416168393,0.75127,2662.4,2662.3,0.75126]
[1740416168795,0.75126,2662.5,2662.4,0.75124]
[1740416169100,3.7483,2662.6,2662.0,4.3052]
[1740416169597,3.7483,2662.6,2662.0,1.0974]
[1740416170197,5.62631,2662.6,2662.1,0.75134]
[1740416170494,0.75133,2662.2,2662.1,0.75131]
[1740416170795,0.7513,2662.3,2662.2,0.75129]
[1740416170996,0.75134,2662.2,2662.1,0.75132]
[1740416171198,0.75133,2662.2,2662.1,0.75131]
[1740416171794,1.8781,2662.5,2662.0,0.5463]
[1740416172103,1.87817,2662.4,2662.0,0.5463]
[1740416172292,0.75134,2662.2,2662.1,0.75132]
[1740416172901,0.75131,2662.3,2662.2,0.75129]
[1740416173698,0.75129,2662.4,2662.3,0.75126]
[1740416173896,5.96429,2662.8,2662.1,3.2078]
[1740416174194,5.96429,2662.8,2662.2,0.75129]
[1740416174195,0.75131,2662.3,2662.2,0.75129]
[1740416174498,0.75133,2662.2,2662.1,0.75131]
[1740416175195,0.75134,2662.1,2662.0,1.29764]
[1740416175394,1.8781,2662.5,2662.0,1.29764]
[1740416175597,0.75134,2662.2,2662.1,0.75131]
[1740416175795,1.1228,2662.3,2662.2,0.75131]
[1740416175994,0.75124,2662.5,2662.4,0.75123]
[1740416176195,1.1228,2662.6,2662.1,3.2078]
[1740416176897,4.3306,2662.6,2662.0,0.5463]
[1740416178196,1.1228,2662.6,2662.1,3.2078]
[1740416178799,1.1228,2662.6,2662.0,0.5463]
[1740416179602,1.1228,2662.6,2662.1,3.2078]
[1740416180000,1.6778,2663.2,2662.4,3.2078]
[1740416180199,1.6778,2663.2,2662.5,1.6576]
[1740416182498,1.1384,2663.2,2662.5,1.6576]
[1740416182800,1.1384,2663.2,2662.7,3.2078]
[1740416182992,0.5606,2663.2,2662.7,6.4248]
[1740416183507,0.00562356,2663.3,2663.0,3.2078]
[1740416183800,0.00562356,2663.3,2662.7,6.4248]
[1740416184000,0.00562356,2663.3,2662.8,1.1666]
[1740416184798,0.00562356,2663.3,2662.7,3.2078]
[1740416184799,3.2078,2663.2,2662.7,3.2078]
[1740416185006,0.5616,2663.1,2662.7,3.2078]
[1740416185201,0.5762,2663.0,2662.7,3.2078]
[1740416185499,1.1306,2663.0,2662.7,3.2078]
[1740416187001,1.1306,2663.0,2662.6,0.5403]
[1740416190198,1.1306,2663.0,2662.7,3.2078]
[1740416190705,3.2078,2663.2,2662.7,3.2078]
[1740416191204,4.359,2663.2,2662.7,3.2078]
[1740416192798,3.215,2663.1,2662.7,3.2078]
[1740416193004,3.215,2663.1,2662.4,3.2078]
[1740416195812,3.215,2663.1,2662.2,3.7851]
[1740416195813,0.00562356,2663.3,2662.7,3.2078]
[1740416196014,0.00562356,2663.3,2663.0,3.2078]
[1740416197613,0.00562356,2663.3,2663.0,3.50564411]
[1740416200115,0.00562356,2663.3,2663.0,5.38335411]
[1740416200310,0.00562356,2663.3,2663.2,0.75103]
[1740416200516,0.00562356,2663.3,2663.2,44.76503]
[1740416201016,0.00562356,2663.3,2663.2,0.75103]
[1740416201207,0.00562356,2663.3,2663.2,3.214]
[1740416210015,3.56e-06,2663.3,2663.2,3.214]
[1740416211617,3.56e-06,2663.3,2663.0,0.00563433]
[1740416211817,3.2078,2663.2,2663.0,0.00563433]
[1740416212022,0.5641,2663.1,2663.0,0.00563433]
[1740416212220,1.31516,2663.1,2663.0,0.00563433]
[1740416212816,4.52716,2663.1,2663.0,0.00563433]
[1740416214025,9.83720807,2663.1,2661.9,20.824]
[1740416214217,0.75136,2662.1,2662.0,0.75136]
[1740416215225,0.5833,2662.4,2661.9,20.824]
[1740416215226,0.75137,2662.0,2661.9,20.824]
[1740416215429,0.75149,2661.6,2661.5,3.9593]
[1740416215624,0.75147,2661.7,2661.5,3.2078]
[1740416215921,0.00563433,2661.8,2661.7,0.75145]
[1740416216422,0.75706433,2661.8,2661.5,3.2078]
[1740416216623,0.00563433,2661.8,2661.7,0.75145]
[1740416217017,0.75147,2661.7,2661.6,0.75148]
[1740416217218,0.75147,2661.7,2661.5,3.95928]
[1740416217413,0.75148,2661.6,2661.5,3.2078]
[1740416218020,0.5858,2661.7,2661.5,3.95931]
[1740416218325,1.33727,2661.7,2661.5,3.2078]
[1740416218525,0.5858,2661.7,2661.5,3.2078]
[1740416218726,1.33725,2661.7,2661.6,0.75148]
[1740416219228,0.5858,2661.7,2661.6,0.75148]
[1740416219913,1.33725,2661.7,2661.6,0.75148]
[1740416220120,0.75148,2661.6,2661.5,3.95929]
[1740416220522,1.33726,2661.7,2661.6,0.75148]
[1740416220922,0.5858,2661.7,2661.6,0.75148]
[1740416221525,0.75149,2661.6,2661.5,0.75149]
[1740416221728,0.75152,2661.5,2661.4,0.75152]
[1740416221927,0.5858,2661.7,2661.2,6.9563]
[1740416222124,1.33727,2661.7,2661.6,0.75148]
[1740416222615,1.33727,2661.7,2661.2,8.83527]
[1740416222616,0.75155,2661.4,2661.3,0.75153]
[1740416222822,0.5858,2661.7,2661.2,3.7443]
[1740416223021,0.75157,2661.3,2661.2,4.49588]
[1740416223226,0.75157,2661.3,2661.2,3.7443]
[1740416223430,0.75157,2661.3,2661.2,3.2078]
[1740416223933,0.75162,2661.1,2661.0,41.55165]
[1740416224123,1.879,2661.2,2660.8,3.2078]
[1740416224425,0.75169,2660.9,2660.4,3.7403]
[1740416224725,0.7517,2660.9,2660.8,0.7517]
[1740416224917,0.75177,2660.6,2660.5,0.75178]
[1740416225121,3.2078,2660.8,2660.0,0.5325]
[1740416225322,3.2078,2660.8,2659.9,3.2078]
[1740416225323,0.75189,2660.2,2659.9,3.2078]
[1740416225527,0.75189,2660.2,2660.1,0.7519]
[1740416225729,0.5429,2660.4,2659.9,3.2078]
[1740416225929,0.75192,2660.1,2659.9,3.2078]
[1740416226118,0.5713,2660.3,2659.9,3.2078]
[1740416226426,0.54853433,2660.4,2659.9,3.2078]
[1740416226627,0.54853433,2660.4,2660.3,0.75185]
[1740416226826,0.54853433,2660.4,2660.2,3.95967]
[1740416227031,0.54853433,2660.4,2659.9,3.2078]
[1740416227323,0.75187,2660.3,2660.2,0.75188]
[1740416227525,0.54853433,2660.4,2660.3,0.75185]
[1740416228321,0.00563433,2660.4,2660.3,0.75185]
[1740416230732,0.75187,2660.3,2660.2,0.75186]
[1740416231129,0.00563433,2660.4,2659.9,3.2078]
[1740416231439,0.00563433,2660.4,2660.3,0.75185]
[1740416231626,4.33e-06,2660.4,2660.3,0.75185]
[1740416231822,4.33e-06,2660.4,2660.3,6.75185]
[1740416232030,4.33e-06,2660.4,2660.3,0.75185]
[1740416232231,4.33e-06,2660.4,2660.3,47.55185]
[1740416232434,4.33e-06,2660.4,2660.3,41.55185]
[1740416233830,0.75182433,2660.4,2660.3,0.75185]
[1740416234034,0.75185,2660.3,2660.2,3.2078]
[1740416234227,0.75185,2660.3,2660.2,3.95968]
[1740416234423,4.33e-06,2660.4,2660.3,0.75185]
[1740416237127,4.33e-06,2660.4,2660.3,7.84425]
[1740416237334,4.33e-06,2660.4,2660.3,8.42175]
[1740416237538,4.33e-06,2660.4,2660.3,2.42175]
[1740416238131,4.33e-06,2660.4,2660.3,1.87095]
[1740416238437,0.75185,2660.3,2660.2,3.2078]
[1740416238637,0.75185433,2660.4,2660.3,0.75185]
[1740416238940,4.33e-06,2660.4,2660.3,0.75185]
[1740416239341,0.75182433,2660.4,2660.3,0.75185]
[1740416240040,4.33e-06,2660.4,2660.3,0.75185]
[1740416240240,0.75182433,2660.4,2660.3,0.75185]
[1740416241641,0.75185,2660.3,2660.2,3.2078]
[1740416241839,0.75188,2660.2,2660.1,0.00563433]
[1740416244040,1.88004,2659.8,2659.3,3.2078]
[1740416244242,0.75212,2659.4,2659.3,3.95992]
[1740416244441,0.75212,2659.4,2659.3,3.2078]
[1740416244642,6.4188,2659.5,2658.9,3.2078]
[1740416244838,1.88048,2659.1,2658.0,1.88124]
[1740416245046,3.2078,2658.9,2658.2,3.2078]
[1740416245240,3.2078,2658.9,2658.7,0.75228]
[1740416245241,0.00563433,2658.8,2658.7,0.75228]
[1740416245437,0.75792433,2658.8,2658.7,0.7523]
[1740416245633,1.88635433,2658.8,2658.1,3.212]
[1740416245938,0.75790433,2658.8,2658.7,0.7523]
[1740416246136,0.00563433,2658.8,2658.2,6.4198]
[1740416246442,0.75792433,2658.8,2658.4,0.5657]
[1740416246634,0.75792433,2658.8,2658.5,0.5469]
[1740416246835,0.00563433,2658.8,2658.7,0.7523]
[1740416247546,0.00563433,2658.8,2658.5,0.5469]
[1740416248041,0.75791433,2658.8,2658.5,0.5469]
[1740416248244,0.00563433,2658.8,2658.7,0.7523]
[1740416248635,0.75231,2658.7,2658.5,0.5469]
[1740416248838,0.75233,2658.6,2658.5,0.5469]
[1740416249739,0.00563433,2658.8,2658.5,0.5469]
[1740416249939,0.75233,2658.7,2658.6,0.75233]
[1740416250134,0.00563433,2658.8,2658.7,0.7523]
[1740416250340,0.00563433,2658.8,2658.7,3.9643]
[1740416250542,4.9017,2659.9,2658.7,9.212]
[1740416250840,3.2078,2659.9,2659.1,1.88048]
[1740416251043,0.75201,2659.8,2659.7,0.752]
[1740416251240,3.2078,2659.9,2659.7,0.752]
[1740416251441,0.75204,2659.7,2659.3,3.2078]
[1740416251636,3.2078,2659.9,2659.4,1.88027]
[1740416251843,0.75204,2659.7,2659.6,0.75203]
[1740416252038,0.75206,2659.6,2659.5,0.75207]
[1740416252648,0.75213,2659.4,2659.3,0.75213]
[1740416252844,0.75207,2659.6,2659.2,4.3407]
[1740416253142,6.4198,2659.9,2659.3,1.88034]
[1740416253143,3.2078,2659.9,2659.3,1.88034]
[1740416253335,0.75212,2659.4,2659.3,0.75212]
[1740416253541,0.75213,2659.3,2659.2,1.1329]
[1740416253840,0.75213,2659.3,2659.2,4.3449]
[1740416254544,0.75213,2659.3,2659.2,1.1329]
[1740416256144,0.75213,2659.3,2659.2,0.5866]
[1740416256442,0.75225,2658.9,2658.8,0.5392]
[1740416258049,0.75225,2658.9,2658.8,1.29147]
[1740416258247,0.75225,2658.9,2658.8,0.5392]
[1740416258446,0.75233,2658.6,2658.5,1.33107433]
[1740416258641,0.75231,2658.8,2658.7,0.75229]
[1740416259549,3.2078,2659.0,2658.5,0.57873433]
[1740416259738,3.2078,2659.3,2658.7,3.2078]
[1740416259945,3.2078,2659.3,2659.2,0.75216]
[1740416260251,3.95993,2659.3,2659.2,0.75216]
[1740416260752,3.2078,2659.3,2659.2,0.75216]
[1740416261148,3.2078,2659.6,2659.1,0.5457]
[1740416261347,0.75212,2659.4,2659.3,0.75211]
[1740416261653,0.7521,2659.5,2659.4,0.75209]
[1740416262152,3.2078,2659.6,2659.1,2.42617]
[1740416262451,0.7521,2659.5,2659.4,0.75208]
[1740416263448,0.75198,2659.9,2659.8,0.75198]
[1740416263645,0.00563433,2660.1,2659.6,1.88011]
[1740416263841,0.75194,2660.0,2659.9,0.75194]
[1740416264047,0.00563433,2660.1,2660.0,0.75193]
[1740416267650,0.00563433,2660.1,2660.0,3.96393]
[1740416268354,0.00563433,2660.1,2660.0,7.17073]
[1740416269657,3.2078,2660.8,2660.0,12.4188]
[1740416269950,0.75189,2660.2,2660.1,0.75189]
[1740416271157,0.00563433,2660.4,2659.9,0.00563433]
[1740416271655,0.75193,2660.0,2659.9,0.75758433]
[1740416271853,0.75193,2660.0,2659.9,0.00563433]
[1740416272244,0.75193,2660.0,2659.9,0.75759433]
[1740416272447,0.75193,2660.1,2660.0,0.75193]
[1740416272649,3.9597,2660.2,2660.1,0.75191]
[1740416273356,3.2078,2660.2,2660.1,0.75191]
[1740416273853,3.95968,2660.2,2660.1,0.75191]
[1740416274154,3.9597,2660.2,2660.1,0.75191]
[1740416274344,0.7519,2660.2,2660.1,0.75191]
[1740416274655,0.75189,2660.2,2660.1,0.7519]
[1740416274953,0.75188,2660.3,2659.9,0.00563433]
[1740416275352,0.75187,2660.3,2659.9,0.00563433]
[1740416275554,0.75187,2660.3,2660.2,0.75188]
[1740416275756,0.75189,2660.2,2660.1,0.75189]
[1740416276756,0.53903433,2660.4,2659.9,0.00563433]
[1740416277150,0.75191,2660.1,2660.0,0.75191]
[1740416277450,0.75193,2660.1,2660.0,0.75193]
[1740416277857,0.75189,2660.2,2660.1,0.75188]
[1740416278359,1.08013433,2660.4,2659.9,0.00563433]
[1740416278548,2.95971433,2660.4,2659.9,0.00563433]
[1740416278754,0.75193,2660.0,2659.9,0.75757433]
[1740416278952,0.75193,2660.0,2659.9,0.75759433]
[1740416279155,1.08013433,2660.4,2659.9,0.00563433]
[1740416279548,3.2078,2660.2,2659.9,0.00563433]
[1740416280459,1.08013433,2660.4,2659.9,0.00563433]
[1740416280758,0.00563433,2660.4,2659.9,3.21343433]
[1740416280958,0.00563433,2660.4,2660.0,0.5639]
[1740416281663,0.00563433,2660.4,2660.1,3.21]
[1740416282162,3.2078,2660.2,2659.9,0.00563433]
[1740416282659,0.00563433,2660.4,2659.9,0.00563433]
[1740416282863,3.2078,2660.2,2659.9,0.00563433]
[1740416284458,1.0928,2660.1,2659.9,0.00563433]
[1740416288167,1.0928,2660.1,2660.0,0.0035481]
[1740416289173,0.5673,2660.3,2660.2,0.6994]
[1740416289466,0.5673,2660.3,2660.2,0.1651]
[1740416289773,0.62835258,2660.3,2659.9,0.00563433]
[1740416289972,3.2078,2660.0,2659.9,0.00563433]
[1740416290370,3.209,2660.1,2659.9,0.00563433]
[1740416290570,3.2078,2660.2,2659.9,0.00563433]
[1740416291172,3.2078,2660.2,2659.9,0.58123433]
[1740416291371,0.00563433,2660.4,2659.9,0.58123433]
[1740416291676,0.00563433,2660.4,2660.0,0.555]
[1740416292673,0.00563433,2660.4,2659.9,0.58123433]
[1740416295175,0.00563433,2660.4,2660.2,3.2078]
[1740416295376,0.00563433,2660.4,2660.3,0.5851]
[1740416295878,0.00563433,2660.4,2660.3,1.1219]
[1740416297680,0.00563433,2660.4,2660.3,0.5851]
[1740416297976,0.00563433,2660.4,2659.9,3.78903433]
[1740416298181,0.00563433,2660.4,2659.9,0.58123433]
[1740416298476,0.59633433,2660.4,2659.9,0.58123433]
[1740416298681,0.00563433,2660.4,2660.0,0.5606]
[1740416301675,0.00563433,2660.4,2660.1,3.2078]
[1740416304281,0.00563433,2660.4,2660.2,3.208]
[1740416304876,5.86629078,2661.0,2660.2,3.208]
[1740416305182,5.86629078,2661.0,2660.5,3.2078]
[1740416305477,5.86629078,2661.0,2660.6,1.1397]
[1740416308180,5.86629078,2661.0,2660.7,0.534]
[1740416308489,0.00563433,2661.1,2660.9,3.2078]
[1740416309484,0.00563433,2661.1,2661.0,3.208]
[1740416309682,0.76968972,2661.7,2661.0,3.208]
[1740416309877,0.76968972,2661.7,2661.3,3.2078]
[1740416310185,0.76968972,2662.2,2661.4,3.7511]
[1740416310376,0.75146,2661.7,2661.6,3.2078]
[1740416310575,0.75146,2661.7,2661.2,3.2078]
[1740416310576,5.08646,2661.7,2661.2,3.2078]
[1740416310782,0.75157,2661.3,2661.2,3.2078]
[1740416310977,0.75157,2661.3,2661.2,0.00563433]
[1740416312389,0.75687,2661.3,2661.2,0.00563433]
[1740416312989,1.13287,2661.3,2661.2,0.00563433]
[1740416313380,0.75687,2661.3,2661.2,0.00563433]
[1740416314384,0.75687,2661.3,2661.2,0.00226976]
[1740416316096,1.13287,2661.3,2661.2,0.00226976]
[1740416316292,7.13287,2661.3,2661.2,9.76e-06]
[1740416316598,2.255,2661.2,2660.4,0.5706]
[1740416316789,6.06635605,2661.3,2660.5,0.75178]
[1740416316790,1.87921,2660.9,2660.5,0.75178]
[1740416316991,0.75179,2660.6,2660.5,0.75178]
[1740416317293,0.75178,2660.6,2660.5,0.75177]
[1740416317493,3.2078,2661.0,2660.4,2.45014]
[1740416317692,0.75172,2660.8,2660.7,0.7517]
[1740416317899,3.2078,2661.0,2660.5,3.7574]
[1740416318199,0.75176,2660.7,2660.6,0.75173]
[1740416318789,0.7517,2660.9,2660.5,3.7574]
[1740416318998,0.7517,2660.9,2660.8,0.75168]
[1740416319298,3.206,2661.2,2660.5,3.7574]
[1740416319601,3.2078,2661.3,2660.5,3.7574]
[1740416320288,3.2078,2661.3,2660.8,3.2078]
[1740416320489,3.2078,2661.3,2660.9,1.155]
[1740416320794,3.2078,2661.3,2661.0,0.5799]
[1740416321393,3.2078,2661.6,2661.0,0.5799]
[1740416321595,3.2078,2661.6,2661.1,3.2078]
[1740416321993,3.2078,2661.8,2661.1,3.2078]
[1740416322200,3.2078,2661.8,2661.1,5.08685]
[1740416322395,0.75149,2661.6,2661.5,0.75149]
[1740416322701,3.2078,2661.8,2661.6,0.5804]
[1740416323003,3.95924,2661.8,2661.7,1.29465]
[1740416323498,6.62131355,2661.9,2661.8,0.75143]
[1740416323691,5.86990355,2661.9,2661.7,0.5432]
[1740416323892,5.86990355,2661.9,2661.8,0.75143]
[1740416324194,6.62130355,2661.9,2661.8,0.75143]
[1740416324600,0.00563433,2661.9,2661.8,0.75143]
[1740416325102,0.75143,2661.8,2661.7,1.29464]
[1740416325299,0.75143,2661.8,2661.7,1.29465]
[1740416326000,0.75143,2661.8,2661.7,0.5432]
[1740416326301,0.75145,2661.7,2661.6,3.2078]
[1740416327006,0.7515,2661.6,2661.5,0.75148]
[1740416327299,0.00563433,2661.9,2661.3,4.9211]
[1740416327903,3.2078,2662.2,2661.6,3.2078]
[1740416328092,3.2078,2662.5,2661.6,6.4128]
[1740416328903,3.2078,2662.5,2661.9,3.2078]
[1740416329206,0.00563433,2662.3,2662.0,1.1416]
[1740416330900,0.00563433,2662.3,2662.0,0.5787]
[1740416331803,0.00563433,2662.3,2662.1,0.5391]
[1740416333304,0.00563433,2662.3,2662.2,0.5528]
[1740416341411,3.2078,2662.8,2662.2,0.5528]
[1740416342214,3.2078,2662.8,2662.2,0.22281885]
[1740416342409,0.14761124,2663.0,2662.5,3.2078]
[1740416342610,0.00563433,2662.8,2662.6,0.5783]
[1740416344015,0.00563433,2662.8,2662.2,0.22281885]
[1740416344216,0.00563433,2662.8,2662.3,0.5783]
[1740416344411,3.2078,2662.6,2662.3,0.5783]
[1740416345424,0.00563433,2662.8,2662.3,3.7861]
[1740416346310,0.00563433,2662.8,2662.3,0.5783]
[1740416347018,3.2078,2662.7,2662.3,0.5783]
[1740416347314,3.5838,2662.7,2662.2,3.203]
[1740416347514,0.0159,2662.6,2662.2,3.203]
[1740416349609,3.97821252,2662.7,2662.2,3.203]
[1740416349808,3.2078,2662.7,2662.2,3.203]
[1740416351911,0.00563433,2662.8,2662.2,3.203]
[1740416353612,0.00563433,2662.8,2662.3,3.2078]
[1740416353812,0.00563433,2662.8,2662.4,0.5394]
[1740416354113,0.00563433,2662.8,2662.5,0.5766]
[1740416354617,3.2078,2662.7,2662.1,0.5394]
[1740416354818,3.2078,2662.7,2662.2,3.7625]
[1740416355014,3.5838,2662.7,2662.2,3.7625]
[1740416356417,3.5838,2662.7,2662.2,0.5605]
[1740416357616,3.5838,2662.7,2662.0,3.7511]
[1740416357617,3.5838,2662.4,2662.0,0.5433]
[1740416357823,1.1357,2662.3,2661.8,0.00563433]
[1740416358021,3.2078,2662.1,2661.8,0.00563433]
[1740416358215,0.7514,2661.9,2661.8,0.00563433]
[1740416359226,0.376,2661.9,2660.8,4.86124]
[1740416359525,0.7516,2661.2,2661.0,3.2078]
[1740416359830,0.75159,2661.3,2661.2,0.75157]
[1740416360028,5.08658,2661.6,2661.0,3.2078]
[1740416360029,3.2078,2661.6,2661.0,3.2078]
[1740416360222,0.7516,2661.3,2661.2,0.75158]
[1740416360417,0.75153,2661.5,2661.4,0.75151]
[1740416360624,0.75151,2661.5,2661.4,0.75151]
[1740416360823,3.21343433,2661.6,2661.2,1.1386]
[1740416361033,3.96493433,2661.6,2661.5,0.75151]
[1740416361535,0.75153,2661.5,2661.4,0.75151]
[1740416363238,0.00563433,2661.6,2661.5,0.75151]
[1740416363534,0.75143,2661.9,2661.8,0.75141]
[1740416363734,0.75143,2661.9,2661.3,8.28772]
[1740416363735,0.7515,2661.6,2661.5,3.95928]
[1740416363936,0.7515,2661.6,2661.5,41.55148]
[1740416364129,0.7515,2661.6,2661.5,40.8]
[1740416364331,3.7682,2662.2,2661.5,40.8]
[1740416364532,0.00563433,2661.8,2661.7,0.75144]
[1740416364837,0.00563433,2661.8,2661.5,40.8]
[1740416364838,0.75145,2661.7,2661.6,1.28496]
[1740416365236,0.00563433,2661.8,2661.6,0.5335]
[1740416366536,0.00563433,2661.8,2661.7,0.5416]
[1740416368339,3.2078,2662.5,2661.7,3.7426]
[1740416368639,3.2078,2662.5,2661.9,3.2078]
[1740416369344,3.21153899,2662.5,2661.9,3.2078]
[1740416371231,3.58753899,2662.5,2661.9,3.2078]
[1740416371636,0.5353,2662.4,2661.9,3.2078]
[1740416371831,0.5468,2662.3,2661.9,3.2078]
[1740416372032,0.5468,2662.3,2661.8,3.7468]
[1740416372438,3.21153899,2662.5,2661.8,6.9546]
[1740416373041,3.21153899,2662.5,2662.1,3.2078]
[1740416373335,0.75126,2662.4,2662.3,0.75129]
[1740416373734,3.21153899,2662.5,2662.2,1.1548]
[1740416374033,0.75129,2662.4,2662.3,0.75127]
[1740416374240,0.75129,2662.3,2662.2,1.90609]
[1740416374442,0.75129,2662.3,2662.2,1.1548]
[1740416374844,0.75129,2662.3,2662.2,1.90611]
[1740416375439,3.96278899,2662.5,2662.4,0.75126]
[1740416375644,0.75129,2662.3,2662.2,1.90609]